bitfinex/quotes_BTCUSD_20251016
["timestamp","ask_amount","ask_price","bid_price","bid_amount"]
[1760596695815,1.03353642,111580.0,111570.0,0.11272]
[1760596696023,1.03353642,111580.0,111560.0,0.00554938]
[1760596696024,0.17925965,111570.0,111560.0,0.00554938]
[1760596696235,0.95386999,111570.0,111560.0,0.11826938]
[1760596696657,1.29386999,111570.0,111560.0,0.00554938]
[1760596697950,1.31312222,111570.0,111560.0,0.00554938]
[1760596698171,1.35929654,111570.0,111560.0,0.00554938]
[1760596698380,1.35929654,111570.0,111560.0,0.00730231]
[1760596698588,4.97150683,111570.0,111560.0,0.00730231]
[1760596699029,4.97150683,111570.0,111560.0,1e-08]
[1760596699030,6.27307731,111570.0,111560.0,1e-08]
[1760596699247,5.13039975,111570.0,111560.0,1e-08]
[1760596699461,5.20302598,111570.0,111560.0,1e-08]
[1760596700350,5.20402598,111570.0,111560.0,1e-08]
[1760596700996,5.17256237,111570.0,111560.0,1e-08]
[1760596701200,5.17356237,111570.0,111560.0,1e-08]
[1760596701414,4.02664686,111570.0,111560.0,1e-08]
[1760596701633,5.17470564,111570.0,111560.0,1e-08]
[1760596702480,5.12672393,111570.0,111560.0,1e-08]
[1760596703141,5.03231393,111570.0,111560.0,1e-08]
[1760596703359,3.65952287,111540.0,111530.0,0.005]
[1760596703569,4.80966591,111540.0,111530.0,0.00549794]
[1760596704186,4.85334744,111540.0,111530.0,0.00549794]
[1760596704384,4.82928483,111540.0,111530.0,0.00549794]
[1760596704591,4.86546711,111540.0,111530.0,0.00549794]
[1760596704767,4.91359233,111540.0,111530.0,0.00549794]
[1760596705277,4.88150885,111540.0,111530.0,0.00549794]
[1760596705728,4.83338363,111540.0,111530.0,0.00549794]
[1760596708374,4.89786116,111540.0,111530.0,0.00549794]
[1760596709010,4.89786116,111540.0,111530.0,0.00725157]
[1760596710730,0.99877762,111540.0,111530.0,0.00725157]
[1760596710939,0.84460997,111540.0,111530.0,0.00725157]
[1760596711149,0.81764369,111540.0,111530.0,0.00725157]
[1760596711360,1.15764369,111540.0,111530.0,0.00725157]
[1760596711568,1.54032995,111540.0,111530.0,0.00725157]
[1760596711782,4.74502248,111540.0,111530.0,0.00725157]
[1760596713964,1.60480748,111540.0,111530.0,0.00725157]
[1760596714402,1.22212122,111540.0,111530.0,0.00725157]
[1760596714616,0.59796161,111540.0,111530.0,0.00725157]
[1760596715044,0.58124636,111540.0,111530.0,0.00725157]
[1760596715256,0.59797335,111540.0,111530.0,0.00725157]
[1760596715466,0.21528709,111540.0,111530.0,0.00725157]
[1760596715730,0.64387899,111540.0,111530.0,0.00725157]
[1760596716392,0.67533176,111540.0,111530.0,0.00725157]
[1760596717275,0.49602389,111540.0,111530.0,0.00725157]
[1760596717483,0.24673986,111540.0,111530.0,0.18657551]
[1760596717701,0.09955551,111540.0,111530.0,0.38910563]
[1760596717911,0.07546678,111540.0,111530.0,0.27626563]
[1760596718116,0.04334326,111540.0,111530.0,0.38914563]
[1760596718339,0.04334326,111540.0,111530.0,0.36594771]
[1760596718546,0.04334326,111540.0,111530.0,0.38914563]
[1760596718764,0.04334326,111540.0,111530.0,0.27626563]
[1760596718976,0.04334326,111540.0,111530.0,0.38914563]
[1760596719627,0.04334326,111540.0,111530.0,0.27626563]
[1760596719842,0.59410735,111550.0,111540.0,0.17930787]
[1760596719843,0.45042818,111550.0,111540.0,0.17930787]
[1760596720064,0.02409237,111550.0,111540.0,0.38183799]
[1760596720272,0.02409237,111550.0,111540.0,0.26899799]
[1760596720492,0.20338416,111550.0,111540.0,0.08969012]
[1760596720761,0.02409237,111550.0,111540.0,0.39976877]
[1760596720969,0.59408872,111560.0,111540.0,0.26899799]
[1760596721397,0.17929179,111550.0,111540.0,0.26899799]
[1760596721649,0.56197805,111550.0,111540.0,0.26899799]
[1760596722062,0.56197805,111550.0,111540.0,0.08969012]
[1760596722499,0.17929179,111550.0,111540.0,0.20253012]
[1760596722752,0.17929179,111550.0,111540.0,0.08969012]
[1760596722969,0.17930787,111540.0,111530.0,0.00549794]
[1760596723224,0.56199413,111540.0,111530.0,0.09518806]
[1760596723643,0.56199413,111540.0,111530.0,0.00549794]
[1760596723856,0.94468039,111540.0,111530.0,0.00549794]
[1760596724100,4.10163864,111540.0,111530.0,0.00549794]
[1760596724327,4.19132072,111540.0,111530.0,0.00549794]
[1760596724571,4.31132072,111540.0,111530.0,0.00549794]
[1760596725469,4.55417655,111540.0,111530.0,0.00549794]
[1760596725695,4.60235631,111540.0,111530.0,0.00549794]
[1760596725951,4.60235631,111540.0,111530.0,0.00725157]
[1760596729433,4.55417655,111540.0,111530.0,0.00725157]
[1760596729668,4.55420521,111540.0,111530.0,0.00725157]
[1760596730495,4.60251665,111540.0,111530.0,0.00725157]
[1760596731136,4.55420521,111540.0,111530.0,0.00725157]
[1760596731352,4.60251746,111540.0,111530.0,0.00725157]
[1760596731780,4.57353029,111540.0,111530.0,0.00725157]
[1760596732230,4.62184295,111540.0,111530.0,0.00725157]
[1760596732861,4.62184432,111540.0,111530.0,0.00725157]
[1760596733908,1.39194724,111540.0,111530.0,0.00725157]
[1760596734542,1.34363458,111540.0,111530.0,0.00725157]
[1760596735173,1.3268613,111540.0,111530.0,0.00725157]
[1760596736607,0.65863295,111540.0,111530.0,0.18657551]
[1760596736822,0.65863295,111540.0,111530.0,0.27626563]
[1760596736823,0.01932508,111540.0,111530.0,0.27626563]
[1760596737032,0.19863295,111540.0,111530.0,0.38910563]
[1760596737456,0.19861687,111550.0,111530.0,0.38914563]
[1760596737653,0.19861687,111550.0,111530.0,0.387392]
[1760596737876,0.19861687,111550.0,111540.0,0.00116898]
[1760596738091,0.19861687,111550.0,111540.0,0.11404898]
[1760596738591,0.17929179,111550.0,111540.0,0.00116898]
[1760596738805,0.17929179,111550.0,111540.0,0.11400898]
[1760596739266,0.20756816,111560.0,111540.0,0.13193976]
[1760596739493,0.17929179,111550.0,111540.0,0.01793078]
[1760596739710,0.17929179,111550.0,111540.0,0.13077078]
[1760596740179,0.84752014,111550.0,111530.0,0.27450993]
[1760596740399,0.84753622,111540.0,111530.0,0.274512]
[1760596740628,0.85647143,111560.0,111540.0,0.17930787]
[1760596740846,0.17929255,111550.0,111540.0,0.26899799]
[1760596741094,0.17929255,111550.0,111540.0,0.38183799]
[1760596742407,0.87580697,111560.0,111540.0,0.38183799]
[1760596742877,0.17929179,111550.0,111540.0,0.26899799]
[1760596743096,0.17929179,111550.0,111540.0,0.43265509]
[1760596743824,0.17929179,111550.0,111540.0,0.26899799]
[1760596744028,0.17929179,111550.0,111540.0,0.38183799]
[1760596744245,0.87580166,111560.0,111540.0,0.38183799]
[1760596744456,0.17929179,111550.0,111540.0,0.38183799]
[1760596744691,0.85747143,111560.0,111550.0,0.00058444]
[1760596745591,0.85747143,111560.0,111550.0,0.29271623]
[1760596745592,0.19024308,111560.0,111550.0,0.29271623]
[1760596745788,0.19024308,111560.0,111550.0,0.14644598]
[1760596746024,0.18824308,111560.0,111550.0,0.22104373]
[1760596746236,0.18824308,111560.0,111550.0,0.20311456]
[1760596746865,0.18924308,111560.0,111550.0,0.20311456]
[1760596747462,0.57269123,111560.0,111550.0,0.20311456]
[1760596748504,0.57269123,111560.0,111550.0,0.09027456]
[1760596748713,0.34971819,111560.0,111550.0,0.40033552]
[1760596748917,0.38244815,111560.0,111550.0,0.38236635]
[1760596749122,0.57071717,111560.0,111550.0,0.32573377]
[1760596749341,0.56172387,111560.0,111550.0,0.43853377]
[1760596749568,0.38244815,111570.0,111550.0,0.32573377]
[1760596749788,0.58101158,111580.0,111560.0,0.26896584]
[1760596749998,0.59169221,111580.0,111570.0,0.1128]
[1760596750618,0.17925965,111570.0,111560.0,0.08969012]
[1760596750826,0.5617078,111570.0,111560.0,0.22041769]
[1760596751038,0.5617078,111570.0,111560.0,0.20249012]
[1760596751250,0.5617078,111570.0,111560.0,0.20253986]
[1760596751884,1.01825114,111570.0,111560.0,4.974e-05]
[1760596752313,1.01825114,111570.0,111560.0,0.11284974]
[1760596753132,0.17925965,111570.0,111560.0,0.13077731]
[1760596753346,0.5617078,111570.0,111560.0,0.01797731]
[1760596753560,0.17925965,111570.0,111560.0,0.13077731]
[1760596753778,0.5617078,111570.0,111560.0,4.974e-05]
[1760596753985,0.5617078,111570.0,111560.0,0.11284974]
[1760596754198,0.63580299,111570.0,111560.0,4.974e-05]
[1760596754411,0.63580299,111570.0,111560.0,0.11284974]
[1760596754620,0.25335484,111570.0,111560.0,4.974e-05]
[1760596754837,0.5617078,111570.0,111560.0,0.11284974]
[1760596755077,0.17925965,111570.0,111560.0,0.13077731]
[1760596755294,0.5617078,111570.0,111560.0,0.13077731]
[1760596755504,0.5617078,111570.0,111560.0,0.01797731]
[1760596755713,0.5617078,111570.0,111560.0,0.13077731]
[1760596755934,0.5617078,111570.0,111560.0,0.31005303]
[1760596756145,0.17924406,111580.0,111560.0,0.38181558]
[1760596756146,0.56169221,111580.0,111560.0,0.38181558]
[1760596756389,0.19924359,111580.0,111570.0,0.17925965]
[1760596756595,0.19924359,111580.0,111570.0,0.20249012]
[1760596757415,0.58169174,111580.0,111570.0,0.08969012]
[1760596757650,0.58169174,111580.0,111570.0,0.22041608]
[1760596757857,0.58169174,111580.0,111570.0,0.20249012]
[1760596758960,0.58169174,111580.0,111570.0,0.38174977]
[1760596759415,0.58169174,111580.0,111570.0,0.38170977]
[1760596759994,0.58169174,111580.0,111570.0,0.20245012]
[1760596760609,0.58169174,111580.0,111570.0,0.08969012]
[1760596760809,0.58169174,111580.0,111570.0,0.10761608]
[1760596761009,0.58169174,111580.0,111570.0,0.39963573]
[1760596761207,0.58946521,111590.0,111580.0,0.17924359]
[1760596761592,0.66643066,111590.0,111580.0,0.38169371]
[1760596761788,0.66643066,111590.0,111580.0,0.26893371]
[1760596761996,0.66643066,111590.0,111580.0,0.38169371]
[1760596762613,0.66643066,111590.0,111580.0,0.26893371]
[1760596762834,0.48720314,111590.0,111580.0,0.38169371]
[1760596763451,0.48720314,111590.0,111580.0,0.26893371]
[1760596763656,0.48720314,111590.0,111580.0,0.38169371]
[1760596764275,0.66643066,111590.0,111580.0,0.38169371]
[1760596765320,0.105,111590.0,111580.0,0.29884243]
[1760596765524,0.105,111590.0,111580.0,0.41160243]
[1760596765764,0.105,111590.0,111580.0,0.29884243]
[1760596766188,0.105,111590.0,111580.0,0.41160243]
[1760596766398,0.005,111590.0,111580.0,0.29884243]
[1760596766622,0.005,111590.0,111580.0,0.41160243]
[1760596766879,0.005,111590.0,111580.0,0.29884243]
[1760596767088,0.005,111590.0,111580.0,0.68104557]
[1760596767311,0.005,111590.0,111580.0,0.79380557]
[1760596767949,0.005,111590.0,111580.0,0.68104557]
[1760596768159,0.005,111590.0,111580.0,0.79480557]
[1760596768572,0.005,111590.0,111580.0,0.68304557]
[1760596768776,0.005,111590.0,111580.0,0.79580557]
[1760596769476,0.005,111590.0,111580.0,0.68304557]
[1760596769721,0.005,111590.0,111580.0,0.79580557]
[1760596770417,0.005,111590.0,111580.0,0.68304557]
[1760596770622,0.005,111590.0,111580.0,0.79580557]
[1760596771069,0.005,111590.0,111580.0,0.68304557]
[1760596771315,0.005,111590.0,111580.0,0.79580557]
[1760596771898,0.005,111590.0,111580.0,0.68304557]
[1760596772109,0.005,111590.0,111580.0,0.79576557]
[1760596773352,0.005,111590.0,111580.0,0.41356243]
[1760596773779,0.005,111590.0,111580.0,0.79576557]
[1760596774436,0.005,111590.0,111580.0,0.41356243]
[1760596774870,0.005,111590.0,111580.0,0.30084243]
[1760596775085,0.005,111590.0,111580.0,0.79576557]
[1760596775354,0.005,111590.0,111580.0,0.30084243]
[1760596775546,0.005,111590.0,111580.0,0.79576557]
[1760596776044,0.005,111590.0,111580.0,0.68304557]
[1760596776417,0.005,111590.0,111580.0,0.79576557]
[1760596776674,0.005,111590.0,111580.0,0.68304557]
[1760596776862,0.005,111590.0,111580.0,0.79576557]
[1760596778806,0.005,111590.0,111580.0,0.68304557]
[1760596779012,0.005,111590.0,111580.0,0.79576557]
[1760596782420,0.005,111590.0,111580.0,0.68304557]
[1760596782642,0.005,111590.0,111580.0,0.79576557]
[1760596782857,0.005,111590.0,111580.0,0.68304557]
[1760596783083,0.005,111590.0,111580.0,0.79576557]
[1760596783536,0.005,111590.0,111580.0,1.44143099]
[1760596783753,0.005,111590.0,111580.0,1.55415099]
[1760596783961,0.005,111590.0,111580.0,1.44143099]
[1760596784182,0.005,111590.0,111580.0,1.55415099]
[1760596784399,1e-08,111590.0,111580.0,1.58108932]
[1760596784614,1e-08,111590.0,111580.0,1.96329246]
[1760596785060,1e-08,111590.0,111580.0,0.81668304]
[1760596785280,1e-08,111590.0,111580.0,1.46836932]
[1760596785503,1e-08,111590.0,111580.0,1.58108932]
[1760596785732,1e-08,111590.0,111580.0,1.46836932]
[1760596786378,1e-08,111590.0,111580.0,1.08616618]
[1760596787038,1e-08,111590.0,111580.0,1.19888618]
[1760596787457,1e-08,111590.0,111580.0,1.13809351]
[1760596787671,1e-08,111590.0,111580.0,1.25081351]
[1760596787879,1e-08,111590.0,111580.0,0.70396304]
[1760596788091,1e-08,111590.0,111580.0,1.13809351]
[1760596788318,1e-08,111590.0,111580.0,1.25081351]
[1760596788529,1e-08,111590.0,111580.0,0.81668304]
[1760596788741,1e-08,111590.0,111580.0,1.13809351]
[1760596789167,1e-08,111590.0,111580.0,0.70396304]
[1760596789420,1e-08,111590.0,111580.0,1.25081351]
[1760596789855,1e-08,111590.0,111580.0,1.13809351]
[1760596790065,1e-08,111590.0,111580.0,1.25081351]
[1760596790275,1e-08,111590.0,111580.0,1.13809351]
[1760596790489,1e-08,111590.0,111580.0,1.25081351]
[1760596790705,1e-08,111590.0,111580.0,1.13809351]
[1760596790913,1e-08,111590.0,111580.0,1.25081351]
[1760596791747,1e-08,111590.0,111580.0,1.13809351]
[1760596792182,1e-08,111590.0,111580.0,1.25081351]
[1760596792397,1e-08,111590.0,111580.0,1.13809351]
[1760596793264,1e-08,111590.0,111580.0,1.25081351]
[1760596794312,1e-08,111590.0,111580.0,0.81668304]
[1760596794533,1e-08,111590.0,111580.0,1.25081351]
[1760596795377,1e-08,111590.0,111580.0,1.13809351]
[1760596795820,1e-08,111590.0,111580.0,1.25081351]
[1760596796668,1e-08,111590.0,111580.0,1.30461351]
[1760596798012,1e-08,111590.0,111580.0,1.19189351]
[1760596798222,1e-08,111590.0,111580.0,1.30457351]
[1760596799072,1e-08,111590.0,111580.0,1.30357351]
[1760596799523,1e-08,111590.0,111580.0,1.18989351]
[1760596799774,1e-08,111590.0,111580.0,1.19189351]
[1760596799978,1e-08,111590.0,111580.0,1.30257351]
[1760596800434,1e-08,111590.0,111580.0,1.19389351]
[1760596800648,1e-08,111590.0,111580.0,1.30657351]
[1760596800873,1e-08,111590.0,111580.0,1.19189351]
[1760596801149,1e-08,111590.0,111580.0,1.30457351]
[1760596801363,1e-08,111590.0,111580.0,1.30657351]
[1760596801582,1e-08,111590.0,111580.0,1.19389351]
[1760596801804,1e-08,111590.0,111580.0,1.30657351]
[1760596802026,1e-08,111590.0,111580.0,1.19389351]
[1760596802238,1e-08,111590.0,111580.0,1.30657351]
[1760596802723,1e-08,111590.0,111580.0,1.30457351]
[1760596802960,1e-08,111590.0,111580.0,1.30657351]
[1760596803398,0.005,111620.0,111610.0,0.55537769]
[1760596803622,0.005,111620.0,111610.0,1.12458326]
[1760596803846,0.005,111620.0,111610.0,1.23726326]
[1760596804774,0.005,111620.0,111610.0,1.23826326]
[1760596806108,0.005,111620.0,111610.0,1.12558326]
[1760596806564,0.005,111620.0,111610.0,1.23826326]
[1760596806783,0.005,111620.0,111610.0,1.23926326]
[1760596807011,0.005,111620.0,111610.0,1.12658326]
[1760596807489,0.005,111620.0,111610.0,1.26619393]
[1760596808140,0.0767521,111650.0,111640.0,0.95327772]
[1760596808353,0.0769014,111650.0,111640.0,1.10086396]
[1760596808615,0.0051493,111650.0,111640.0,1.21354396]
[1760596809481,0.0051493,111650.0,111640.0,1.17295281]
[1760596810364,0.0051493,111650.0,111640.0,1.06027281]
[1760596810549,0.0051493,111650.0,111640.0,1.59074701]
[1760596810799,0.0051493,111650.0,111640.0,1.47806701]
[1760596811015,0.0051493,111650.0,111640.0,1.59074701]
[1760596811242,0.0051493,111650.0,111640.0,1.59174701]
[1760596811447,0.0051493,111650.0,111640.0,0.71584317]
[1760596811665,0.0051493,111650.0,111640.0,0.82852317]
[1760596815735,0.0051493,111650.0,111640.0,0.71584317]
[1760596816192,0.01078135,111650.0,111640.0,0.82848317]
[1760596816431,0.01078135,111650.0,111640.0,0.67966089]
[1760596816636,0.01078135,111650.0,111640.0,0.79230089]
[1760596816859,0.01078135,111650.0,111640.0,0.67966089]
[1760596817062,0.01078135,111650.0,111640.0,0.79230089]
[1760596817277,0.01078135,111650.0,111640.0,0.67966089]
[1760596817489,0.01078135,111650.0,111640.0,0.79230089]
[1760596818369,0.01078135,111650.0,111640.0,0.66773349]
[1760596818597,0.18991256,111650.0,111640.0,0.20333012]
[1760596818816,0.18991256,111650.0,111640.0,0.26983737]
[1760596819262,0.18991256,111650.0,111640.0,0.38247737]
[1760596819485,0.18991256,111650.0,111640.0,0.26983737]
[1760596819972,0.17913121,111650.0,111640.0,0.26983737]
[1760596820217,0.17913121,111650.0,111640.0,0.31591276]
[1760596820676,0.61279356,111650.0,111640.0,0.09069012]
[1760596820911,0.12310944,111660.0,111640.0,0.40039209]
[1760596821139,0.17924889,111660.0,111650.0,0.26882133]
[1760596821385,0.00013372,111660.0,111650.0,0.38146133]
[1760596821628,0.17924889,111660.0,111650.0,0.32498219]
[1760596821843,0.17924889,111660.0,111650.0,0.43762219]
[1760596822054,0.17924889,111660.0,111650.0,0.32498219]
[1760596822498,0.17924889,111660.0,111650.0,0.43762219]
[1760596822714,0.00013372,111660.0,111650.0,0.43762219]
[1760596823586,0.00013372,111660.0,111650.0,0.32498219]
[1760596823814,0.00013372,111660.0,111650.0,0.43762219]
[1760596824058,0.00013372,111660.0,111650.0,0.32498219]
[1760596824277,0.00013372,111660.0,111650.0,0.43762219]
[1760596825843,0.00013372,111660.0,111650.0,0.32498219]
[1760596826059,0.00013372,111660.0,111650.0,0.43762219]
[1760596826727,0.00013372,111660.0,111650.0,0.32598219]
[1760596826938,0.00071733,111660.0,111650.0,0.43862219]
[1760596827377,0.00071733,111660.0,111650.0,0.32598219]
[1760596827596,0.00071733,111660.0,111650.0,0.43862219]
[1760596828532,0.00071733,111660.0,111650.0,0.32598219]
[1760596828747,0.00071733,111660.0,111650.0,0.43862219]
[1760596830463,0.00071733,111660.0,111650.0,0.32598219]
[1760596831097,0.00071733,111660.0,111650.0,0.43862219]
[1760596831316,0.00071733,111660.0,111650.0,0.32598219]
[1760596831747,0.00071733,111660.0,111650.0,0.43862219]
[1760596832396,0.00071733,111660.0,111650.0,0.77862219]
[1760596833050,0.00071733,111660.0,111650.0,0.66598219]
[1760596833491,0.00071733,111660.0,111650.0,0.77862219]
[1760596833713,0.00071733,111660.0,111650.0,0.66598219]
[1760596833933,0.00071733,111660.0,111650.0,1.0837745]
[1760596834418,0.00071733,111660.0,111650.0,1.1964145]
[1760596835474,0.00071733,111660.0,111650.0,1.0837745]
[1760596835685,0.00071733,111660.0,111650.0,0.81480447]
[1760596836117,0.00071733,111660.0,111650.0,0.70216447]
[1760596836330,0.00071733,111660.0,111650.0,0.81480447]
[1760596836550,0.00071733,111660.0,111650.0,0.70216447]
[1760596836775,0.00071733,111660.0,111650.0,0.81480447]
[1760596836985,0.00071733,111660.0,111650.0,0.70216447]
[1760596837192,0.00071733,111660.0,111650.0,0.81480447]
[1760596837828,0.00071733,111660.0,111650.0,0.70216447]
[1760596838049,0.00071733,111660.0,111650.0,0.81480447]
[1760596838472,0.00071733,111660.0,111650.0,0.70216447]
[1760596838680,0.00071733,111660.0,111650.0,0.81480447]
[1760596839098,0.00071733,111660.0,111650.0,0.70216447]
[1760596839324,0.00071733,111660.0,111650.0,0.81480447]
[1760596839988,0.00071733,111660.0,111650.0,0.70216447]
[1760596840204,0.00071733,111660.0,111650.0,0.81480447]
[1760596841563,0.00071733,111660.0,111650.0,0.66598219]
[1760596841801,0.1798325,111660.0,111650.0,0.32598219]
[1760596841997,0.56144253,111660.0,111650.0,0.09069012]
[1760596842896,0.56144253,111660.0,111650.0,0.38246133]
[1760596843105,0.56144253,111660.0,111650.0,0.20333012]
[1760596843313,0.56144253,111660.0,111650.0,0.09069012]
[1760596843522,0.56144253,111660.0,111650.0,0.20333012]
[1760596844558,0.56144253,111660.0,111650.0,0.09069012]
[1760596844769,0.63549784,111660.0,111650.0,0.09069012]
[1760596844984,0.58077215,111660.0,111650.0,0.09069012]
[1760596845624,0.97238218,111660.0,111650.0,0.11364]
[1760596845839,0.59077215,111660.0,111650.0,0.11364]
[1760596846058,0.20916212,111660.0,111650.0,0.001]
[1760596846276,0.57144253,111660.0,111650.0,0.11364]
[1760596846495,0.58077215,111660.0,111650.0,0.11364]
[1760596846712,0.58077215,111660.0,111650.0,0.001]
[1760596846950,0.17913121,111650.0,111640.0,0.17914611]
[1760596847180,0.17913121,111650.0,111640.0,0.30556238]
[1760596847606,0.17913121,111650.0,111640.0,0.12641627]
[1760596847818,0.56074124,111650.0,111640.0,0.20233012]
[1760596848277,0.56074124,111650.0,111640.0,0.09069012]
[1760596848496,0.56074124,111650.0,111640.0,0.20333012]
[1760596848716,0.56074124,111650.0,111640.0,0.09069012]
[1760596848930,0.56074124,111650.0,111640.0,0.20333012]
[1760596849152,0.56074124,111650.0,111640.0,0.09069012]
[1760596849375,0.56074124,111650.0,111640.0,0.20333012]
[1760596849609,0.56074124,111650.0,111640.0,0.09069012]
[1760596849826,0.56074124,111650.0,111640.0,0.20333012]
[1760596850037,0.56074124,111650.0,111640.0,0.09069012]
[1760596850245,0.56074124,111650.0,111640.0,0.20333012]
[1760596850673,0.56074124,111650.0,111640.0,0.09069012]
[1760596850885,0.56074124,111650.0,111640.0,0.20233012]
[1760596851322,0.56074124,111650.0,111640.0,0.41962656]
[1760596851959,0.17913121,111650.0,111640.0,0.41962656]
[1760596853239,0.17913121,111650.0,111640.0,0.30698656]
[1760596853508,0.17913121,111650.0,111640.0,0.41962656]
[1760596853731,0.56144253,111660.0,111640.0,0.41962656]
[1760596853952,0.56144253,111660.0,111650.0,0.22024324]
[1760596854172,0.56144253,111660.0,111650.0,0.13344409]
[1760596854394,0.1798325,111660.0,111650.0,0.14735591]
[1760596854621,0.1798325,111660.0,111650.0,0.25999591]
[1760596854830,0.1798325,111660.0,111650.0,0.13344409]
[1760596855060,0.1798325,111660.0,111650.0,0.26399721]
[1760596855278,0.1798325,111660.0,111650.0,0.24608409]
[1760596855694,0.1798325,111660.0,111650.0,0.13344409]
[1760596855882,0.1798325,111660.0,111650.0,0.15135721]
[1760596856304,0.56144253,111660.0,111650.0,0.26399721]
[1760596856540,0.56144253,111660.0,111650.0,0.24608409]
[1760596856720,0.56144253,111660.0,111650.0,0.13344409]
[1760596856925,0.56144253,111660.0,111650.0,0.15135721]
[1760596857343,0.56144253,111660.0,111650.0,0.26399721]
[1760596857551,0.56144253,111660.0,111650.0,0.24608409]
[1760596858602,0.1798325,111660.0,111650.0,0.13344409]
[1760596858833,0.1798325,111660.0,111650.0,0.44312842]
[1760596859024,0.1798325,111660.0,111650.0,0.3125753]
[1760596859432,0.56144253,111660.0,111650.0,0.3125753]
[1760596859664,0.56144253,111660.0,111650.0,0.4252153]
[1760596860519,0.00071733,111660.0,111650.0,0.4252153]
[1760596860730,0.00071733,111660.0,111650.0,0.3125753]
[1760596861143,0.00071733,111660.0,111650.0,0.4252153]
[1760596863244,0.00071733,111660.0,111650.0,0.20233012]
[1760596863245,0.56144253,111660.0,111650.0,0.20233012]
[1760596863456,0.56144253,111660.0,111650.0,0.08969012]
[1760596863674,0.56144253,111660.0,111650.0,0.20233012]
[1760596864099,0.56144253,111660.0,111650.0,0.08969012]
[1760596864753,0.56144253,111660.0,111650.0,0.20233012]
[1760596865183,0.56144253,111660.0,111650.0,0.08969012]
[1760596865401,0.56144253,111660.0,111650.0,0.10760324]
[1760596865617,0.56144253,111660.0,111650.0,0.20233012]
[1760596865862,0.56144253,111660.0,111650.0,0.08969012]
[1760596866285,0.56144253,111660.0,111650.0,0.20233012]
[1760596866515,0.57144253,111660.0,111650.0,0.20233012]
[1760596867614,0.57144253,111660.0,111650.0,0.08969012]
[1760596867828,0.57144253,111660.0,111650.0,0.20233012]
[1760596868477,0.57144253,111660.0,111650.0,0.08969012]
[1760596868684,0.57144253,111660.0,111650.0,0.20233012]
[1760596869108,0.57144253,111660.0,111650.0,0.08969012]
[1760596869320,0.57144253,111660.0,111650.0,0.20233012]
[1760596869758,0.57144253,111660.0,111650.0,0.08969012]
[1760596869969,0.57144253,111660.0,111650.0,0.20233012]
[1760596870187,0.57144253,111660.0,111650.0,0.08969012]
[1760596870858,0.57144253,111660.0,111650.0,0.10760324]
[1760596871122,0.56144253,111660.0,111650.0,0.13627828]
[1760596871558,0.1798325,111660.0,111650.0,0.24891828]
[1760596871767,0.1798325,111660.0,111650.0,0.23100516]
[1760596872870,0.56144253,111660.0,111650.0,0.08969012]
[1760596873300,0.9540232,111660.0,111650.0,0.08969012]
[1760596873513,0.97337294,111660.0,111650.0,0.20233012]
[1760596873753,0.17914725,111640.0,111630.0,0.18811799]
[1760596873964,0.56075728,111640.0,111630.0,0.39044811]
[1760596874210,0.56075728,111640.0,111630.0,0.08969012]
[1760596874652,0.17919461,111620.0,111600.0,0.26889771]
[1760596874874,0.56080464,111620.0,111610.0,0.39944507]
[1760596875087,0.17919461,111620.0,111610.0,0.26888553]
[1760596875304,0.17919461,111620.0,111610.0,0.38152553]
[1760596875726,0.17919461,111620.0,111610.0,0.26888553]
[1760596875937,0.17919461,111620.0,111610.0,0.08983942]
[1760596876150,0.17919461,111620.0,111610.0,0.20247942]
[1760596876297,0.17919461,111620.0,111610.0,0.38267483]
[1760596876506,0.17919461,111620.0,111610.0,0.27003483]
[1760596876714,0.56080464,111620.0,111610.0,0.09183942]
[1760596877082,0.56080464,111620.0,111610.0,0.09083942]
[1760596877290,0.56080464,111620.0,111610.0,0.20347942]
[1760596877518,0.56080464,111620.0,111610.0,0.20247942]
[1760596877890,0.56080464,111620.0,111610.0,0.20347942]
[1760596878518,0.56080464,111620.0,111610.0,0.09083942]
[1760596879017,0.56080464,111620.0,111610.0,0.20347942]
[1760596879224,0.56080464,111620.0,111610.0,0.09083942]
[1760596879424,0.56080464,111620.0,111610.0,0.20347942]
[1760596879840,0.56080464,111620.0,111610.0,0.09083942]
[1760596880039,0.56080464,111620.0,111610.0,0.20347942]
[1760596881111,0.65048672,111620.0,111610.0,0.1137893]
[1760596881330,0.66145736,111620.0,111610.0,0.0011493]
[1760596881527,0.66145736,111620.0,111610.0,0.1137893]
[1760596881765,0.66145736,111620.0,111610.0,0.0011493]
[1760596881977,0.66145736,111620.0,111610.0,0.1138293]
[1760596882192,0.66145736,111620.0,111610.0,0.0001493]
[1760596882407,0.66145736,111620.0,111610.0,0.1128293]
[1760596882636,0.70769248,111620.0,111610.0,0.0001493]
[1760596882851,0.68075086,111620.0,111610.0,0.0001493]
[1760596883287,1.02075086,111620.0,111610.0,0.0001493]
[1760596883495,4.92582209,111620.0,111610.0,0.0001493]
[1760596883926,4.72309078,111620.0,111610.0,0.0001493]
[1760596884132,4.90228539,111620.0,111610.0,0.0001493]
[1760596885434,4.92922965,111620.0,111610.0,0.0001493]
[1760596885662,4.54707423,111620.0,111610.0,0.0001493]
[1760596885874,4.54610359,111620.0,111610.0,0.0001493]
[1760596894121,4.95240498,111620.0,111610.0,0.0001493]
[1760596894536,4.98557457,111620.0,111610.0,0.0001493]
[1760596895587,5.00974126,111620.0,111610.0,0.0001493]
[1760596895792,5.0264642,111620.0,111610.0,0.0001493]
[1760596895999,4.99426525,111620.0,111610.0,0.0001493]
[1760596896209,5.15224569,111620.0,111610.0,0.0001493]
[1760596896414,5.12013765,111620.0,111610.0,0.0001493]
[1760596897263,5.50229307,111620.0,111610.0,0.0001493]
[1760596897464,5.12013765,111620.0,111610.0,0.0001493]
[1760596897625,5.13101154,111620.0,111610.0,0.0001493]
[1760596897838,0.17921146,111600.0,111590.0,0.00388087]
[1760596897995,4.68930627,111600.0,111590.0,0.00388087]
[1760596898200,4.66619167,111600.0,111590.0,0.00388087]
[1760596898600,4.69314055,111600.0,111590.0,0.00388087]
[1760596899001,4.31098513,111600.0,111590.0,0.00388087]
[1760596899453,4.33506934,111600.0,111590.0,0.00388087]
[1760596900493,4.31098513,111600.0,111590.0,0.00388087]
[1760596900932,4.69314055,111600.0,111590.0,0.00388087]
[1760596901314,4.74131104,111600.0,111590.0,0.00388087]
[1760596901555,4.35915562,111600.0,111590.0,0.00388087]
[1760596901758,4.75804491,111600.0,111590.0,0.00388087]
[1760596901978,4.72593125,111600.0,111590.0,0.00388087]
[1760596902404,4.73624307,111600.0,111590.0,0.00388087]
[1760596902613,4.68807258,111600.0,111590.0,0.00388087]
[1760596902819,4.67776076,111600.0,111590.0,0.00388087]
[1760596903022,4.72499751,111600.0,111590.0,0.00388087]
[1760596903665,4.34284209,111600.0,111590.0,0.00388087]
[1760596904113,4.72499751,111600.0,111590.0,0.00388087]
[1760596904291,4.34381273,111600.0,111590.0,0.00388087]
[1760596904524,4.72596815,111600.0,111590.0,0.00388087]